fUST/lending_fUST_20260118
["ID","MTS","AMOUNT","RATE_DAILY","PERIOD"]
[402443762,1768679439606,-718.32,0.00016438,3]
[402443763,1768679439628,-500.0,0.00016438,3]
[402443764,1768679439640,-500.0,0.00016438,3]
[402443765,1768679439651,-500.0,0.00016438,3]
[402443766,1768679439660,-500.0,0.00016438,3]
[402443767,1768679439670,-500.0,0.00016438,3]
[402443768,1768679439679,-297.32226087,0.00016438,3]
[402443769,1768679439689,-872.29,0.00016438,3]
[402443770,1768679439698,-561.82,0.00016438,3]
[402443771,1768679439708,-500.0,0.00016438,3]
[402443772,1768679439717,-500.0,0.00016438,3]
[402443773,1768679439726,-500.0,0.00016438,3]
[402443774,1768679439736,-942.6,0.00016438,3]
[402443775,1768679439745,-500.0,0.00016438,3]
[402443776,1768679439754,-500.0,0.00016438,3]
[402443777,1768679439764,-1254.55,0.00016438,3]
[402443778,1768679439779,-500.0,0.00016438,3]
[402443779,1768679439789,-500.0,0.00016438,3]
[402443780,1768679439799,-500.0,0.00016438,3]
[402443781,1768679439808,-500.0,0.00016438,3]
[402443782,1768679439817,-510.09347373,0.00016438,3]
[402443783,1768679439826,-500.0,0.00016438,3]
[402443784,1768679439836,-509.49842469,0.00016438,3]
[402443785,1768679439845,-500.0,0.00016438,3]
[402443786,1768679439855,-500.0,0.00016438,3]
[402443787,1768679439864,-500.0,0.00016438,3]
[402443788,1768679439874,-656.32,0.00016438,3]
[402443789,1768679439883,-500.0,0.00016438,3]
[402443790,1768679439894,-500.0,0.00016438,3]
[402443791,1768679439903,-510.46768292,0.00016438,3]
[402443792,1768679439912,-500.0,0.00016438,3]
[402443793,1768679439922,-500.0,0.00016438,3]
[402443794,1768679439931,-500.0,0.00016438,3]
[402443795,1768679439942,-500.0,0.00016438,3]
[402443796,1768679439951,-500.0,0.00016438,3]
[402443797,1768679439961,-500.0,0.00016438,3]
[402443798,1768679439970,-500.0,0.00016438,3]
[402443799,1768679439980,-500.0,0.00016438,3]
[402443800,1768679439989,-500.0,0.00016438,3]
[402443801,1768679439999,-797.42,0.00016438,3]
[402443802,1768679440009,-881.58,0.00016438,3]
[402443803,1768679440019,-1020.76,0.00016438,3]
[402443804,1768679440029,-500.0,0.00016438,3]
[402443805,1768679440038,-617.55085621,0.00016438,3]
[402443806,1768679440048,-500.0,0.00016438,3]
[402443807,1768679440057,-500.0,0.00016438,3]
[402443808,1768679440067,-500.0,0.00016438,3]
[402443809,1768679440077,-338.02289746,0.00016438,3]
[402443810,1768679440086,-500.0,0.00016438,3]
[402443811,1768679440096,-500.0,0.00016438,3]
[402443812,1768679440106,-500.0,0.00016438,3]
[402443813,1768679440116,-1057.49,0.00016438,3]
[402443814,1768679440125,-500.0,0.00016438,3]
[402443815,1768679440136,-500.0,0.00016438,3]
[402443816,1768679440146,-500.0,0.00016438,3]
[402443817,1768679440156,-1420.1,0.00016438,3]
[402443818,1768679440166,-500.0,0.00016438,3]
[402443819,1768679440175,-884.75,0.00016438,3]
[402443820,1768679440184,-500.0,0.00016438,2]
[402443821,1768679440194,-500.0,0.00016438,3]
[402443822,1768679440203,-500.0,0.00016438,3]
[402443823,1768679440213,-500.0,0.00016438,3]
[402443824,1768679440223,-1000.0,0.00016438,2]
[402443826,1768679440232,-500.0,0.00016438,3]
[402443828,1768679440246,-500.0,0.00016438,3]
[402443830,1768679440256,-500.0,0.00016438,3]
[402443832,1768679440265,-847.44,0.00016438,3]
[402443833,1768679440275,-500.0,0.00016438,3]
[402443834,1768679440287,-500.0,0.00016438,3]
[402443835,1768679440297,-500.0,0.00016438,3]
[402443836,1768679440306,-500.0,0.00016438,3]
[402443837,1768679440318,-511.95572068,0.00016438,3]
[402443838,1768679440328,-500.0,0.00016438,3]
[402443839,1768679440337,-500.0,0.00016438,3]
[402443840,1768679440346,-1228.47,0.00016438,3]
[402443841,1768679440356,-255.78047731,0.00016438,3]
[402443842,1768679440366,-500.0,0.00016438,3]
[402443843,1768679440375,-606.9,0.00016438,3]
[402443844,1768679440384,-500.0,0.00016438,3]
[402443846,1768679440393,-500.0,0.00016438,3]
[402443847,1768679440403,-500.0,0.00016438,3]
[402443850,1768679440412,-500.0,0.00016438,3]
[402443852,1768679440422,-586.69345544,0.00016438,3]
[402443853,1768679440431,-500.0,0.00016438,3]
[402443855,1768679440441,-736.96,0.00016438,3]
[402443857,1768679440451,-500.0,0.00016438,3]
[402443859,1768679440460,-545.22,0.00016438,3]
[402443861,1768679440469,-500.0,0.00016438,3]
[402443864,1768679440479,-727.09,0.00016438,3]
[402443866,1768679440489,-500.0,0.00016438,3]
[402443868,1768679440502,-1634.12,0.00016438,3]
[402443870,1768679440512,-500.0,0.00016438,3]
[402443872,1768679440521,-595.35,0.00016438,3]
[402443874,1768679440531,-500.0,0.00016438,3]
[402443876,1768679440541,-500.0,0.00016438,3]
[402443878,1768679440551,-500.0,0.00016438,3]
[402443880,1768679440560,-500.0,0.00016438,3]
[402443882,1768679440570,-500.0,0.00016438,3]
[402443884,1768679440580,-500.0,0.00016438,3]
[402443886,1768679440590,-500.0,0.00016438,3]
[402443888,1768679440601,-500.0,0.00016438,3]
[402443890,1768679440610,-1317.95,0.00016438,3]
[402443892,1768679440620,-304.69534223,0.00016438,3]
[402443894,1768679440630,-718.42,0.00016438,3]
[402443896,1768679440639,-500.0,0.00016438,3]
[402443898,1768679440648,-1449.09,0.00016438,3]
[402443900,1768679440659,-500.0,0.00016438,3]
[402443902,1768679440668,-500.0,0.00016438,3]
[402443904,1768679440678,-759.73,0.00016438,3]
[402443906,1768679440687,-500.0,0.00016438,3]
[402443908,1768679440697,-500.0,0.00016438,3]
[402443910,1768679440706,-500.0,0.00016438,3]
[402443912,1768679440715,-500.0,0.00016438,3]
[402443913,1768679440725,-1291.04,0.00016438,3]
[402443915,1768679440734,-623.12,0.00016438,3]
[402443917,1768679440744,-631.17,0.00016438,3]
[402443919,1768679440754,-500.0,0.00016438,3]
[402443921,1768679440764,-500.0,0.00016438,3]
[402443924,1768679440775,-500.0,0.00016438,3]
[402443925,1768679440784,-512.95426722,0.00016438,3]
[402443927,1768679440794,-1196.65,0.00016438,3]
[402443930,1768679440804,-500.0,0.00016438,3]
[402443932,1768679440814,-500.0,0.00016438,3]
[402443933,1768679440823,-761.06,0.00016438,3]
[402443935,1768679440833,-500.0,0.00016438,3]
[402443938,1768679440842,-541.31799653,0.00016438,3]
[402443939,1768679440852,-609.24,0.00016438,3]
[402443941,1768679440862,-500.0,0.00016438,3]
[402443944,1768679440872,-500.0,0.00016438,3]
[402443946,1768679440882,-500.0,0.00016438,3]
[402443948,1768679440892,-500.0,0.00016438,3]
[402443950,1768679440901,-901.7,0.00016438,3]
[402443952,1768679440911,-1140.39,0.00016438,3]
[402443954,1768679440921,-500.0,0.00016438,3]
[402443956,1768679440930,-500.0,0.00016438,3]
[402443958,1768679440939,-500.0,0.00016438,3]
[402443960,1768679440948,-500.0,0.00016438,3]
[402443962,1768679440959,-500.0,0.00016438,3]
[402443964,1768679440969,-500.0,0.00016438,3]
[402443966,1768679440979,-576.16,0.00016438,3]
[402443968,1768679440990,-500.0,0.00016438,3]
[402443970,1768679441000,-500.0,0.00016438,3]
[402443972,1768679441010,-511.75,0.00016438,3]
[402443974,1768679441031,-680.68,0.00016438,3]
[402443976,1768679441052,-500.0,0.00016438,3]
[402443978,1768679441062,-1548.48,0.00016438,3]
[402443980,1768679441072,-500.0,0.00016438,3]
[402443982,1768679441082,-500.0,0.00016438,3]
[402443984,1768679441091,-500.0,0.00016438,3]
[402443986,1768679441101,-734.72,0.00016438,3]
[402443988,1768679441111,-500.0,0.00016438,3]
[402443990,1768679441121,-1329.58,0.00016438,3]
[402443992,1768679441132,-500.0,0.00016438,3]
[402443994,1768679441142,-500.0,0.00016438,3]
[402443996,1768679441152,-539.06,0.00016438,3]
[402443998,1768679441162,-500.0,0.00016438,3]
[402444001,1768679441173,-500.0,0.00016438,3]
[402444002,1768679441182,-1126.25,0.00016438,3]
[402444005,1768679441192,-500.0,0.00016438,3]
[402444007,1768679441202,-500.0,0.00016438,3]
[402444008,1768679441211,-500.0,0.00016438,3]
[402444010,1768679441221,-390.63830152,0.00016438,3]
[402444013,1768679441231,-500.0,0.00016438,3]
[402444014,1768679441244,-701.32,0.00016438,3]
[402444017,1768679441254,-500.0,0.00016438,3]
[402444041,1768679441482,-1192.97,0.00016438,3]
[402444044,1768679441495,-727.1,0.00016438,3]
[402444045,1768679441504,-500.0,0.00016438,3]
[402444047,1768679441513,-500.0,0.00016438,3]
[402444050,1768679441523,-500.0,0.00016438,3]
[402444052,1768679441532,-781.78,0.00016438,3]
[402444053,1768679441541,-592.22,0.00016438,3]
[402444055,1768679441551,-500.0,0.00016438,3]
[402444057,1768679441560,-500.0,0.00016438,3]
[402444060,1768679441570,-500.0,0.00016438,3]
[402444061,1768679441579,-500.0,0.00016438,3]
[402444064,1768679441588,-500.0,0.00016438,3]
[402444066,1768679441598,-500.0,0.00016438,3]
[402444068,1768679441608,-537.93,0.00016438,3]
[402444070,1768679441617,-1258.39,0.00016438,3]
[402444072,1768679441626,-571.8,0.00016438,3]
[402444073,1768679441635,-605.99,0.00016438,3]
[402444076,1768679441644,-500.0,0.00016438,3]
[402444078,1768679441654,-500.0,0.00016438,3]
[402444080,1768679441663,-500.0,0.00016438,3]
[402444082,1768679441672,-1201.55,0.00016438,3]
[402444084,1768679441681,-500.0,0.00016438,3]
[402444086,1768679441690,-500.0,0.00016438,3]
[402444088,1768679441700,-500.0,0.00016438,3]
[402444090,1768679441709,-500.0,0.00016438,3]
[402444092,1768679441719,-500.0,0.00016438,3]
[402444094,1768679441728,-500.0,0.00016438,3]
[402444096,1768679441738,-500.0,0.00016438,3]
[402444098,1768679441747,-500.0,0.00016438,3]
[402444099,1768679441756,-500.0,0.00016438,3]
[402444102,1768679441766,-500.0,0.00016438,3]
[402444103,1768679441775,-873.03,0.00016438,3]
[402444105,1768679441785,-500.0,0.00016438,3]
[402444107,1768679441794,-1442.06,0.00016438,3]
[402444109,1768679441804,-500.0,0.00016438,3]
[402444111,1768679441813,-500.0,0.00016438,3]
[402444113,1768679441823,-1626.68,0.00016438,3]
[402444115,1768679441832,-829.64,0.00016438,3]
[402444118,1768679441843,-500.0,0.00016438,3]
[402444120,1768679441853,-500.0,0.00016438,3]
[402444122,1768679441862,-500.0,0.00016438,3]
[402444124,1768679441871,-500.0,0.00016438,3]
[402444126,1768679441880,-500.0,0.00016438,3]
[402444128,1768679441889,-500.0,0.00016438,3]
[402444130,1768679441899,-500.0,0.00016438,3]
[402444132,1768679441908,-500.0,0.00016438,3]
[402444134,1768679441917,-500.0,0.00016438,3]
[402444136,1768679441926,-617.5,0.00016438,3]
[402444137,1768679441935,-500.0,0.00016438,3]
[402444139,1768679441944,-500.0,0.00016438,3]
[402444141,1768679441953,-500.0,0.00016438,3]
[402444143,1768679441962,-500.0,0.00016438,3]
[402444145,1768679441971,-500.0,0.00016438,3]
[402444147,1768679441981,-681.42,0.00016438,3]
[402444149,1768679441991,-500.0,0.00016438,3]
[402444151,1768679442000,-500.0,0.00016438,3]
[402444153,1768679442010,-837.21,0.00016438,3]
[402444156,1768679442021,-500.0,0.00016438,3]
[402444158,1768679442030,-500.0,0.00016438,3]
[402444160,1768679442040,-500.0,0.00016438,3]
[402444162,1768679442049,-708.61,0.00016438,3]
[402444163,1768679442059,-500.0,0.00016438,3]
[402444166,1768679442068,-500.0,0.00016438,3]
[402444167,1768679442077,-500.0,0.00016438,3]
[402444169,1768679442087,-197.65009563,0.00016438,3]
[402444171,1768679442096,-500.0,0.00016438,3]
[402444173,1768679442106,-500.0,0.00016438,3]
[402444176,1768679442116,-500.0,0.00016438,3]
[402444178,1768679442128,-500.0,0.00016438,3]
[402444180,1768679442139,-500.0,0.00016438,3]
[402444182,1768679442148,-500.0,0.00016438,3]
[402444184,1768679442157,-511.63,0.00016438,3]
[402444186,1768679442166,-698.16,0.00016438,3]
[402444188,1768679442175,-500.0,0.00016438,3]
[402444190,1768679442185,-1168.98,0.00016438,3]
[402444192,1768679442194,-500.0,0.00016438,3]
[402444194,1768679442204,-500.0,0.00016438,3]
[402444196,1768679442214,-500.0,0.00016438,3]
[402444198,1768679442224,-500.0,0.00016438,3]
[402444200,1768679442234,-500.0,0.00016438,3]
[402444202,1768679442247,-822.62,0.00016438,3]
[402444204,1768679442257,-500.0,0.00016438,3]
[402444206,1768679442266,-500.0,0.00016438,3]
[402444208,1768679442275,-500.0,0.00016438,3]
[402444210,1768679442285,-832.03,0.00016438,3]
[402444212,1768679442295,-500.0,0.00016438,3]
[402444214,1768679442303,-1486.24,0.00016438,3]
[402444216,1768679442314,-964.65,0.00016438,3]
[402444218,1768679442324,-500.0,0.00016438,3]
[402444220,1768679442334,-525.2,0.00016438,3]
[402444222,1768679442344,-500.0,0.00016438,3]
[402444224,1768679442352,-500.0,0.00016438,3]
[402444225,1768679442362,-502.19,0.00016438,3]
[402444227,1768679442372,-663.28,0.00016438,3]
[402444229,1768679442381,-848.63,0.00016438,3]
[402444231,1768679442391,-500.0,0.00016438,3]
[402444233,1768679442400,-500.0,0.00016438,3]
[402444235,1768679442409,-500.0,0.00016438,3]
[402444238,1768679442419,-500.0,0.00016438,3]
[402444240,1768679442429,-500.0,0.00016438,3]
[402444242,1768679442439,-500.0,0.00016438,3]
[402444244,1768679442448,-500.0,0.00016438,3]
[402444246,1768679442457,-1697.38,0.00016438,3]
[402444248,1768679442467,-837.92,0.00016438,3]
[402444250,1768679442477,-500.0,0.00016438,3]
[402444252,1768679442487,-500.0,0.00016438,2]
[402444254,1768679442497,-1459.89,0.00016438,3]
[402444256,1768679442505,-618.81,0.00016438,3]
[402444258,1768679442515,-500.0,0.00016438,3]
[402444260,1768679442525,-883.57,0.00016438,3]
[402444262,1768679442533,-857.65,0.00016438,3]
[402444263,1768679442543,-500.0,0.00016438,3]
[402444265,1768679442551,-500.0,0.00016438,3]
[402444267,1768679442561,-500.0,0.00016438,3]
[402444269,1768679442570,-500.0,0.00016438,3]
[402444271,1768679442581,-403.87472748,0.00016438,3]
[402444273,1768679442590,-500.0,0.00016438,3]
[402444276,1768679442599,-500.0,0.00016438,3]
[402444277,1768679442608,-500.0,0.00016438,3]
[402444279,1768679442617,-500.0,0.00016438,3]
[402444281,1768679442626,-500.0,0.00016438,3]
[402444284,1768679442637,-500.0,0.00016438,3]
[402444285,1768679442647,-1535.26,0.00016438,3]
[402444287,1768679442657,-499.99622273,0.00016438,3]
[402444289,1768679442668,-500.0,0.00016438,3]
[402444292,1768679442677,-500.0,0.00016438,3]
[402444294,1768679442687,-500.0,0.00016438,3]
[402444296,1768679442696,-500.0,0.00016438,3]
[402444298,1768679442706,-987.57,0.00016438,3]
[402444300,1768679442717,-1020.77,0.00016438,3]
[402444302,1768679442726,-500.0,0.00016438,3]
[402444303,1768679442735,-500.0,0.00016438,3]
[402444305,1768679442745,-500.0,0.00016438,3]
[402444307,1768679442754,-500.0,0.00016438,3]
[402444310,1768679442764,-500.0,0.00016438,3]
[402444312,1768679442775,-500.0,0.00016438,3]
[402444314,1768679442784,-545.06,0.00016438,3]
[402444316,1768679442795,-954.48,0.00016438,3]
[402444318,1768679442805,-523.41303574,0.00016438,3]
[402444320,1768679442814,-811.39,0.00016438,3]
[402444322,1768679442824,-500.0,0.00016438,3]
[402444324,1768679442834,-500.0,0.00016438,3]
[402444326,1768679442844,-500.0,0.00016438,3]
[402444328,1768679442853,-534.25045514,0.00016438,3]
[402444330,1768679442862,-500.0,0.00016438,3]
[402444332,1768679442871,-500.0,0.00016438,3]
[402444335,1768679442880,-500.0,0.00016438,3]
[402444338,1768679442889,-500.0,0.00016438,3]
[402444340,1768679442898,-737.68,0.00016438,3]
[402444342,1768679442907,-500.0,0.00016438,3]
[402444345,1768679442916,-500.0,0.00016438,3]
[402444348,1768679442926,-500.0,0.00016438,3]
[402444351,1768679442936,-836.86,0.00016438,3]
[402444354,1768679442945,-1249.71,0.00016438,3]
[402444357,1768679442955,-500.0,0.00016438,3]
[402444360,1768679442965,-1297.98,0.00016438,3]
[402444363,1768679442974,-500.0,0.00016438,3]
[402444366,1768679442984,-1200.0,0.00016438,2]
[402444368,1768679442993,-500.0,0.00016438,3]
[402444370,1768679443003,-500.0,0.00016438,3]
[402444372,1768679443012,-500.0,0.00016438,3]
[402444374,1768679443021,-466.05554011,0.00016438,3]
[402444376,1768679443030,-1182.44,0.00016438,3]
[402444378,1768679443040,-500.0,0.00016438,3]
[402444380,1768679443049,-270.52290684,0.00016438,3]
[402444382,1768679443059,-1000.0,0.00016438,2]
[402444384,1768679443068,-500.0,0.00016438,3]
[402444386,1768679443078,-500.0,0.00016438,3]
[402444388,1768679443087,-500.0,0.00016438,3]
[402444390,1768679443098,-500.0,0.00016438,3]
[402444392,1768679443107,-509.11,0.00016438,3]
[402444394,1768679443116,-443.90722234,0.00016438,3]
[402444396,1768679443126,-2261.74,0.00016438,3]
[402444398,1768679443136,-500.0,0.00016438,3]
[402444400,1768679443145,-500.0,0.00016438,3]
[402444402,1768679443154,-500.0,0.00016438,3]
[402444403,1768679443165,-1804.58,0.00016438,3]
[402444405,1768679443174,-500.0,0.00016438,3]
[402444407,1768679443185,-500.0,0.00016438,3]
[402444409,1768679443194,-500.0,0.00016438,3]
[402444411,1768679443204,-500.0,0.00016438,3]
[402444413,1768679443213,-500.0,0.00016438,3]
[402444415,1768679443222,-500.0,0.00016438,3]
[402444417,1768679443232,-500.0,0.00016438,3]
[402444419,1768679443244,-500.0,0.00016438,3]
[402444421,1768679443253,-1161.49,0.00016438,3]
[402444423,1768679443263,-500.0,0.00016438,3]
[402444425,1768679443275,-579.98,0.00016438,3]
[402444427,1768679443284,-500.0,0.00016438,3]
[402444429,1768679443293,-646.86,0.00016438,3]
[402444431,1768679443302,-500.0,0.00016438,3]
[402444433,1768679443311,-500.0,0.00016438,3]
[402444435,1768679443320,-500.0,0.00016438,3]
[402444437,1768679443329,-500.0,0.00016438,3]
[402444439,1768679443338,-971.6,0.00016438,3]
[402444441,1768679443348,-500.0,0.00016438,3]
[402444443,1768679443358,-500.0,0.00016438,3]
[402444445,1768679443367,-500.0,0.00016438,3]
[402444447,1768679443377,-500.0,0.00016438,3]
[402444449,1768679443386,-779.46,0.00016438,3]
[402444451,1768679443395,-500.0,0.00016438,3]
[402444453,1768679443405,-500.0,0.00016438,3]
[402444455,1768679443414,-779.74,0.00016438,3]
[402444457,1768679443424,-863.36,0.00016438,3]
[402444459,1768679443434,-500.0,0.00016438,3]
[402444462,1768679443444,-549.39,0.00016438,3]
[402444464,1768679443453,-500.0,0.00016438,3]
[402444466,1768679443462,-1141.78,0.00016438,3]
[402444468,1768679443472,-500.0,0.00016438,3]
[402444470,1768679443482,-500.0,0.00016438,3]
[402444472,1768679443492,-1435.49,0.00016438,3]
[402444474,1768679443502,-500.0,0.00016438,3]
[402444476,1768679443511,-500.0,0.00016438,3]
[402444478,1768679443521,-500.0,0.00016438,3]
[402444481,1768679443531,-794.82,0.00016438,3]
[402444482,1768679443541,-502.72122114,0.00016438,3]
[402444484,1768679443550,-500.0,0.00016438,3]
[402444486,1768679443560,-500.0,0.00016438,3]
[402444488,1768679443569,-758.34,0.00016438,3]
[402444490,1768679443578,-500.0,0.00016438,3]
[402444492,1768679443588,-500.0,0.00016438,3]
[402444494,1768679443597,-500.0,0.00016438,3]
[402444496,1768679443607,-500.0,0.00016438,3]
[402444498,1768679443615,-1219.11,0.00016438,3]
[402444500,1768679443625,-500.0,0.00016438,3]
[402444502,1768679443634,-500.0,0.00016438,3]
[402444504,1768679443643,-716.42,0.00016438,3]
[402444506,1768679443653,-500.0,0.00016438,3]
[402444508,1768679443663,-500.0,0.00016438,3]
[402444510,1768679443672,-828.42,0.00016438,3]
[402444512,1768679443681,-500.0,0.00016438,3]
[402444515,1768679443691,-1973.46,0.00016438,3]
[402444517,1768679443701,-1549.77,0.00016438,3]
[402444519,1768679443711,-1689.4,0.00016438,3]
[402444521,1768679443720,-500.0,0.00016438,3]
[402444523,1768679443728,-1151.7,0.00016438,3]
[402444525,1768679443738,-500.0,0.00016438,3]
[402444526,1768679443747,-1119.45,0.00016438,3]
[402444528,1768679443757,-608.13,0.00016438,3]
[402444531,1768679443767,-500.0,0.00016438,3]
[402444533,1768679443776,-500.0,0.00016438,3]
[402444535,1768679443787,-1042.67,0.00016438,3]
[402444537,1768679443797,-500.0,0.00016438,3]
[402444539,1768679443806,-500.0,0.00016438,3]
[402444541,1768679443815,-500.0,0.00016438,3]
[402444543,1768679443824,-500.0,0.00016438,3]
[402444545,1768679443833,-500.0,0.00016438,3]
[402444547,1768679443842,-500.0,0.00016438,3]
[402444549,1768679443853,-2245.47,0.00016438,3]
[402444550,1768679443862,-500.0,0.00016438,3]
[402444553,1768679443872,-500.0,0.00016438,3]
[402444555,1768679443882,-500.0,0.00016438,3]
[402444556,1768679443891,-500.0,0.00016438,3]
[402444559,1768679443902,-500.0,0.00016438,3]
[402444561,1768679443911,-1377.29,0.00016438,3]
[402444563,1768679443921,-611.27,0.00016438,3]
[402444565,1768679443930,-500.0,0.00016438,3]
[402444567,1768679443940,-500.0,0.00016438,3]
[402444569,1768679443950,-500.0,0.00016438,3]
[402444571,1768679443960,-566.4,0.00016438,3]
[402444573,1768679443969,-500.0,0.00016438,3]
[402444575,1768679443979,-500.0,0.00016438,3]
[402444577,1768679443988,-1322.2,0.00016438,3]
[402444578,1768679443998,-500.0,0.00016438,3]
[402444580,1768679444007,-500.0,0.00016438,3]
[402444582,1768679444016,-658.43,0.00016438,3]
[402444584,1768679444026,-500.0,0.00016438,3]
[402444586,1768679444035,-1008.67,0.00016438,3]
[402444588,1768679444045,-500.0,0.00016438,3]
[402444590,1768679444055,-500.0,0.00016438,3]
[402444592,1768679444064,-1081.56,0.00016438,3]
[402444594,1768679444074,-792.81,0.00016438,3]
[402444596,1768679444086,-500.0,0.00016438,3]
[402444598,1768679444095,-500.0,0.00016438,3]
[402444600,1768679444104,-500.0,0.00016438,3]
[402444602,1768679444113,-500.0,0.00016438,3]
[402444604,1768679444122,-500.0,0.00016438,3]
[402444606,1768679444131,-634.45,0.00016438,3]
[402444608,1768679444140,-1290.02,0.00016438,3]
[402444610,1768679444150,-500.0,0.00016438,3]
[402444611,1768679444160,-500.0,0.00016438,3]
[402444612,1768679444169,-500.0,0.00016438,3]
[402444613,1768679444179,-595.68293991,0.00016438,3]
[402444614,1768679444188,-649.46,0.00016438,3]
[402444615,1768679444198,-629.85,0.00016438,3]
[402444616,1768679444207,-500.0,0.00016438,3]
[402444617,1768679444217,-1795.72,0.00016438,3]
[402444618,1768679444227,-500.0,0.00016438,3]
[402444619,1768679444237,-500.0,0.00016438,3]
[402444620,1768679444249,-511.27,0.00016438,3]
[402444621,1768679444259,-704.12,0.00016438,3]
[402444622,1768679444269,-500.0,0.00016438,3]
[402444623,1768679444278,-500.0,0.00016438,3]
[402444624,1768679444289,-612.91517649,0.00016438,3]
[402444625,1768679444298,-1121.71,0.00016438,3]
[402444626,1768679444308,-7250.78,0.00016438,3]
[402444627,1768679444320,-500.0,0.00016438,3]
[402444628,1768679444329,-500.0,0.00016438,3]
[402444629,1768679444338,-500.0,0.00016438,3]
[402444630,1768679444348,-500.0,0.00016438,3]
[402444631,1768679444358,-500.0,0.00016438,3]
[402444632,1768679444368,-911.63,0.00016438,3]
[402444633,1768679444377,-500.0,0.00016438,3]
[402444634,1768679444387,-723.29,0.00016438,3]
[402444635,1768679444396,-500.0,0.00016438,3]
[402444636,1768679444407,-653.32,0.00016438,3]
[402444637,1768679444416,-500.0,0.00016438,3]
[402444638,1768679444425,-500.0,0.00016438,3]
[402444640,1768679444434,-1012.62,0.00016438,3]
[402444642,1768679444444,-900.31,0.00016438,3]
[402444644,1768679444453,-655.23,0.00016438,3]
[402444646,1768679444462,-759.12,0.00016438,3]
[402444648,1768679444471,-874.59,0.00016438,3]
[402444650,1768679444480,-1773.96,0.00016438,3]
[402444652,1768679444489,-782.71,0.00016438,3]
[402444654,1768679444498,-500.0,0.00016438,3]
[402444656,1768679444508,-500.0,0.00016438,3]
[402444658,1768679444517,-500.0,0.00016438,3]
[402444660,1768679444526,-500.0,0.00016438,3]
[402444662,1768679444535,-511.29,0.00016438,3]
[402444664,1768679444544,-848.01,0.00016438,3]
[402444666,1768679444554,-500.0,0.00016438,3]
[402444668,1768679444564,-500.0,0.00016438,3]
[402444670,1768679444574,-500.0,0.00016438,3]
[402444672,1768679444583,-500.0,0.00016438,3]
[402444674,1768679444593,-297.49810477,0.00016438,3]
[402444676,1768679444603,-1511.46,0.00016438,3]
[402444678,1768679444612,-719.22,0.00016438,3]
[402444680,1768679444622,-500.0,0.00016438,3]
[402444682,1768679444631,-795.56,0.00016438,3]
[402444684,1768679444641,-500.0,0.00016438,3]
[402444686,1768679444651,-515.67,0.00016438,3]
[402444688,1768679444660,-710.26,0.00016438,3]
[402444690,1768679444669,-500.0,0.00016438,3]
[402444692,1768679444678,-500.0,0.00016438,3]